{"text_format":"1","workbook":"xlsx","n_sheets":1,"sheets":["Arkusz1"],"not_rendered":{"charts":0,"images":114,"macros":1,"external_links":0,"defined_names":5,"comments":1,"pivot_tables":0},"unopened":[],"bounds":{"document_bytes":16777216,"sheet_cells":100000,"rows_first":2000,"rows_last":500,"rows_between":2000,"halvings":0,"cell_chars":16384,"cell_head_chars":4096},"cells_cut":0,"cells_raw":0,"read":"whole","date_system":"1900"}

{"sheet":"Arkusz1","index":0,"n_rows":113,"n_cols":9,"rows_kept":113,"cut":false,"hidden":false,"merged":[[0,2,1,5],[3,3,3,4],[4,3,4,4],[4,0,4,1],[5,3,5,4]]}
[null,null,"Podane ceny są cenami netto za 1 dobę. Wartość zamówienia jest wartością szacunkową. \nPrzy większych zamówieniach oraz dla stałych klientów oferujemy atrakcyjne rabaty."]
[null,null,null,null,null,null,null,null,"BRUDNY"]
[null,null,null,null,null,null,null,null,"CZYSTY"]
[null,null,null,"Zwracany sprzęt:",null,"CZYSTY"]
["www.gama-wynajem.pl    info@gama-wynajem.pl     503 095 056",null,null,"Wartość zamówienia:",null,{"$f":"SUM(G8:G113)","v":0},null,{"$f":"SUM(J8:J113)","v":0}]
[null,null,null,"Wartość brutto:",null,{"$f":"F5+(F5*0.23)","v":0}]
["Kategoria","Nazwa","Zdjęcie","j. m.","cena netto","Ilość","Wartość","Cena czystych","Cena brudnych"]
["Akcesoria","Grzałka do podgrzewacza z termostatem",null,"szt.",{"$f":"IF(F$4=\"BRUDNY\",I8,H8)","v":15},null,{"$f":"E8*F8","v":0},15,15]
["Akcesoria","Misa GN 1/1 100mm do podgrzewacza",null,"szt.",7,null,0,7,7.7]
["Akcesoria","Serwetnik biały motyw kwiatowy",null,"szt.",4,null,0,4,4]
["Akcesoria","Misa GN 1/1 65mm do podgrzewacza",null,"szt.",7,null,0,7,7.7]
["Akcesoria","Misa GN 1/2 100mm do podgrzewacza",null,"szt.",5,null,0,5,5.5]
["Akcesoria","Misa GN 1/2 65mm do podgrzewacza",null,"szt.",5,null,0,5,5.5]
["Akcesoria","Garnek z pokrywką 2,2L",null,"szt.",10,null,{"$f":"E14*F14","v":0},10,11]
["Akcesoria","Rondel 1,6L",null,"szt.",10,null,0,10,11]
["Akcesoria","Nabierka do zupy",null,"szt.",2,null,0,2,2.2000000000000002]
["Akcesoria","Paliwo do podgrzewacza",null,"szt.",4,null,0,4,4]
["Akcesoria","RAK solniczka + pieprzniczka",null,"kpl.",3,null,0,3,3.6]
["Akcesoria","Sosjerka ze stali nierdzewnej",null,"szt.",2,null,0,2,2.2000000000000002]
["Bufet","Dyspenser do soków 8L",null,"szt.",30,null,0,30,30]
["Bufet","Eternum łyżka do serwowania 24cm",null,"szt.",3,null,0,3,3.6]
["Bufet","Eternum Widelec do serwowania 24cm",null,"szt.",3,null,0,3,3.6]
["Bufet","Kociołek do zupy 10L",null,"szt.",40,null,0,40,44]
["Bufet","Podgrzewacz do potraw + taca GN",null,"szt.",30,null,0,30,33]
["Bufet","Podgrzewacz do potraw Roll-top ",null,"szt.",40,null,0,40,44]
["Bufet","Półmisek 1/1GN melamina biały",null,"szt.",5,null,0,5,5.5]
["Bufet","Półmisek melamina biały 29cm x 19cm",null,"szt.",2,null,0,2,2.2000000000000002]
["Bufet","Półmisek melamina czarny 42cm x 29cm",null,"szt.",3,null,0,3,3.3]
["Bufet","Szczypce małe 14,5cm",null,"szt.",1.5,null,0,1.5,1.8]
["Bufet","Szczypce uniwersalne 24cm",null,"szt.",2,null,0,2,2.4]
["Bufet","Taca kelnerska antypoślizgowa",null,"szt.",4,null,0,4,4.4000000000000004]
["Bufet","Taca okrągłą stal nierdzewna",null,"szt.",4,null,0,4,4.4000000000000004]
["Bufet","Taca stal nierdzewna 53x32cm",null,"szt.",8,null,0,8,8.8000000000000007]
["Bufet","Termos Duży 9L z kranikiem",null,"szt.",20,null,0,20,22]
["Bufet","Termos z pompką 3,5L",null,"szt.",10,null,0,10,12]
["Bufet","Warnik elektryczny 10L",null,"szt.",30,null,0,30,33]
["Bufet","Warnik elektryczny 20L",null,"szt.",30,null,0,30,33]
["Bufet","Wiaderko do lodu/cooler",null,"szt.",4,null,0,4,4.4000000000000004]
["Bufet","Zaparzacz do kawy 20L",null,"szt.",30,null,0,30,33]
["Catering","Termos cateringowy na GN",null,"szt.",40,null,0,40,44]
["Catering","Termos na płyny 20L",null,"szt.",30,null,0,30,33]
["Catering","Wózek kelnerski 3 półki",null,"szt.",50,null,{"$f":"E42*F42","v":0},50,50]
["Catering","Wózek transportowy do tac GN 1/1",null,"szt.",50,null,0,50,50]
["Inne","Ekspres do kawy Saeco Aulika",null,"szt.",220,null,{"$f":"E44*F44","v":0},220,220]
["Inne","Butla z gazem",null,"szt.",80,null,0,70,70]
["Inne","Kuchenka indukcyjna Hendi",null,"szt.",35,null,0,35,35]
["Inne","Piec do pizzy (4 pizze  x 32cm)",null,"szt.",220,null,0,220,220]
["Inne","Podstawa pieca do pizzy",null,"szt.",60,null,0,60,60]
["Inne","Lodówka przeszklona 180x60x60",null,"szt.",190,null,0,170,170]
["Inne","Parawan segment 70cm",null,"szt.",30,null,0,30,30]
["Inne","Plakietka numerek do szatni",null,"szt.",0.01,null,0,0.01,0.01]
["Inne","Słupek odgrodzeniowy",null,"szt.",17,null,0,17,17]
["Inne","Sznur odgrodzeniowy bordowy",null,"szt.",12,null,0,12,12]
["Inne","Sznur odgrodzeniowy granatowy",null,"szt.",12,null,0,12,12]
["Inne","Wieszak 150cm 60 haczyków",null,"szt.",60,null,0,60,60]
["Porcelana","RAK Bulionówka 10,4cm 300ml",null,"szt.",0.45,null,0,0.45,{"$f":"H56+(H56*0.2)","v":0.54}]
["Porcelana","RAK Cukiernica 270ml",null,"szt.",2,null,0,2,2.4]
["Porcelana","RAK Filiżanka 230ml",null,"szt.",45,null,0,0.4,0.48000000000000004]
["Porcelana","RAK misa",null,"szt.",{"$f":"IF(F$4=\"BRUDNY\",I59,H59)","v":3},null,0,3,3.6]
["Porcelana","RAK Półmisek owalny 26cm",null,"szt.",3,null,0,3,3.6]
["Porcelana","RAK Półmisek owalny 32cm",null,"szt.",3,null,0,3,3.6]
["Porcelana","RAK Spodek do bulionówki",null,"szt.",0.35,null,0,0.35,0.42]
["Porcelana","RAK Spodek do filiżanki",null,"szt.",0.35,null,0,0.35,0.42]
["Porcelana","RAK Talerz deserowy 20cm",null,"szt.",0.45,null,0,0.45,0.54]
["Porcelana","RAK Talerz głęboki 23cm",null,"szt.",0.45,null,0,0.45,0.54]
["Porcelana","RAK Talerz obiadowy 27cm",null,"szt.",0.45,null,0,0.45,0.54]
["Porcelana","RAK Talerz przystawkowy 24cm",null,"szt.",{"$f":"IF(F$4=\"BRUDNY\",I67,H67)","v":0.45},null,0,0.45,0.54]
["Porcelana","RAK Karbon Talerz obiadowy 27cm",null,"szt.",1.2,null,{"$f":"E68*F68","v":0},0.8,{"$f":"H68+(H68*0.2)","v":0.96000000000000008}]
["Porcelana","RAK Karbon Talerz przystawkowy 24cm",null,"szt.",1.2,null,{"$f":"E69*F69","v":0},0.7,{"$f":"H69+(H69*0.2)","v":0.84}]
["Porcelana","RAK Karbon Miska 580ml",null,"szt.",1.2,null,{"$f":"E70*F70","v":0},0.9,{"$f":"H70+(H70*0.2)","v":1.08}]
["Porcelana","RAK Waza dozupy 2,5L",null,"szt.",5,null,0,5,6]
["Stoły i krzesła","Krzesło bankietowe",null,"szt.",7,null,0,6,6]
["Stoły i krzesła","Krzesło składane drewniane",null,"szt.",6,null,0,6,6]
["Stoły i krzesła","Stolik koktajlowy 110cm x 60cm'",null,"szt.",20,null,0,20,20]
["Stoły i krzesła","Stolik koktajlowy 110cm x 80cm",null,"szt.",20,null,0,20,20]
["Stoły i krzesła","Stół kwadratowy 90x90cm",null,"szt.",30,null,0,30,30]
["Stoły i krzesła","Stół okrągły 180cm",null,"szt.",40,null,0,40,40]
["Stoły i krzesła","Stół prostokątny 180cm",null,"szt.",30,null,0,30,30]
["Szkło","Libbey karafka 1183 ml",null,"szt.",2,null,{"$f":"E79*F79","v":0},2,2.4]
["Szkło","Libbey kieliszek 40ml",null,"szt.",0.6,null,0,0.55000000000000004,0.66]
["Szkło","Libbey kieliszek do szampana",null,"szt.",0.6,null,0,0.55000000000000004,0.66]
["Szkło","Libbey kieliszek do wina 320ml",null,"szt.",0.6,null,0,0.55000000000000004,0.66]
["Szkło","Libbey kieliszek do wina 410ml",null,"szt.",0.6,null,0,0.55000000000000004,0.66]
["Szkło","Libbey pucharek Catalina 296 ml",null,"szt.",0.6,null,0,0.65,0.78]
["Szkło","Libbey szklanka long drink 210ml",null,"szt.",0.6,null,0,0.55000000000000004,0.66]
["Szkło","Libbey szklanka whiskey/sok 210ml",null,"szt.",0.6,null,0,0.55000000000000004,0.66]
["Sztućce","Eternum Łyżeczka do herbaty",null,"szt.",0.4,null,0,0.35,0.42]
["Sztućce","Eternum Łyżka stołowa",null,"szt.",0.4,null,0,0.35,0.42]
["Sztućce","Eternum Nóż przystawkowy",null,"szt.",0.4,null,0,0.35,0.42]
["Sztućce","Eternum Nóż stołowy",null,"szt.",0.4,null,0,0.35,0.42]
["Sztućce","Eternum Widelczyk do ciasta",null,"szt.",0.4,null,0,0.35,0.42]
["Sztućce","Eternum Widelec przystawkowy",null,"szt.",0.4,null,0,0.35,0.42]
["Sztućce","Eternum Widelec stołowy",null,"szt.",0.4,null,0,0.35,0.42]
["Tekstylia","Pokrowiec na krzesło bankietowe biały",null,"szt.",6,null,0,5.5,5.5]
["Tekstylia","Pokrowiec na krzesło bankietowe czarny",null,"szt.",6,null,0,5.5,5.5]
["Tekstylia","Pokrowiec na stół okrągły 180cm czarny",null,"szt.",{"$f":"IF(F$4=\"BRUDNY\",I96,H96)","v":35},null,{"$f":"E96*F96","v":0},35,35]
["Tekstylia","Pokrowiec na stół okrągły 180cm biały",null,"szt.",35,null,0,35,35]
["Tekstylia","Pokrowiec na stół okrągły 60cm biały",null,"kpl.",17,null,0,17,17]
["Tekstylia","Obrus okrągły biały 280cm",null,"szt.",30,null,{"$f":"E99*F99","v":0},35,35]
["Tekstylia","Obrus kwadratowy biały 150x150cm",null,"szt.",20,null,0,20,20]
["Tekstylia","Obrus prostokątny biały 140x240cm",null,"szt.",20,null,0,20,20]
["Tekstylia","Pokrowiec na stół okrągły 60cm czarny",null,"kpl.",{"$f":"IF(F$4=\"BRUDNY\",I102,H102)","v":17},null,0,17,17]
["Tekstylia","Pokrowiec na stół okrągły 80cm biały",null,"kpl.",17,null,0,17,17]
["Tekstylia","Pokrowiec na stół okrągły 80cm czarny",null,"kpl.",17,null,0,17,17]
["Tekstylia","Pokrowiec na stół prost. 180cm biały",null,"szt.",20,null,0,20,20]
["Tekstylia","Pokrowiec na stół prost. 180cm czarny",null,"szt.",20,null,0,20,20]
["Wyposażenie piknikowe","Grill gazowy 5 palników",null,"szt.",190,null,0,190,228]
["Wyposażenie piknikowe","Grill węglowy 65cm x 95cm",null,"szt.",140,null,0,140,168]
["Wyposażenie piknikowe","Komplet biesiadny 220cm",null,"kpl.",30,null,0,30,30]
["Wyposażenie piknikowe","Namiot expresowy 3m x 6m",null,"szt.",200,null,0,200,200]
["Wyposażenie piknikowe","Parasol grzewczy - grzybek",null,"szt.",{"$f":"IF(F$4=\"BRUDNY\",I111,H111)","v":80},null,0,80,80]
["Wyposażenie piknikowe","Parasol ogrodowy 3,5m kwadr.",null,"szt.",{"$f":"IF(F$4=\"BRUDNY\",I112,H112)","v":50},null,0,50,60]
["Wyposażenie piknikowe","Popielniczka z koszem",null,"szt.",{"$f":"IF(F$4=\"BRUDNY\",I113,H113)","v":15},null,0,15,15]